bitfinex-derivatives/quotes_ETHF0:USTF0_20250209
["timestamp","ask_amount","ask_price","bid_price","bid_amount"]
[1739068770021,7.44851077,2642.3,2641.8,0.5791]
[1739068772521,4.24071077,2642.3,2641.8,0.5791]
[1739068775419,3.2078,2642.1,2641.8,0.5791]
[1739068776119,4.36924627,2642.0,2641.7,3.21348214]
[1739068776322,0.592,2641.9,2641.7,3.21348214]
[1739068784914,4.36924627,2642.0,2641.7,3.21348214]
[1739068787428,4.95834627,2642.0,2641.7,0.00568214]
[1739068789124,3.2078,2641.8,2641.7,0.00568214]
[1739068789523,7.24394201,2641.8,2641.7,0.00568214]
[1739068798237,8.00088201,2641.8,2641.7,0.00568214]
[1739068799133,7.24394201,2641.8,2641.7,0.00568214]
[1739068799536,8.00088201,2641.8,2641.7,0.00568214]
[1739068802627,0.75704,2641.5,2641.0,0.6094]
[1739068802835,3.2078,2641.2,2641.0,0.6094]
[1739068803036,0.5862,2641.1,2641.0,0.6094]
[1739068803331,4.60250718,2641.1,2641.0,0.6094]
[1739068805642,4.01630718,2641.1,2641.0,0.6094]
[1739068806534,3.2078,2641.2,2641.0,0.6094]
[1739068806933,0.00568214,2641.3,2641.0,0.6094]
[1739068809334,3.2078,2641.8,2641.2,2.70288897]
[1739068810143,3.2078,2641.8,2641.5,2.70288897]
[1739068810343,3.2078,2641.8,2641.6,1.1806]
[1739068810731,3.2078,2642.1,2641.6,1.1806]
[1739068810937,3.2078,2642.6,2642.0,3.2078]
[1739068811138,3.2078,2642.6,2642.1,2.70288897]
[1739068811442,3.2078,2642.6,2642.2,1.1806]
[1739068814244,3.2078,2642.6,2642.3,0.6063]
[1739068814741,3.29668897,2642.9,2642.4,2.70288897]
[1739068814742,3.2078,2642.9,2642.4,2.70288897]
[1739068814937,3.2078,2642.9,2642.3,3.8141]
[1739068814938,3.2078,2642.9,2642.7,2.70288897]
[1739068815132,3.2078,2642.9,2642.8,1.1283]
[1739068815443,3.2078,2642.9,2642.8,1.6791]
[1739068816747,5.91068897,2643.5,2642.8,1.6791]
[1739068817239,4.26536549,2643.4,2642.8,1.6791]
[1739068820142,3.2078,2643.2,2642.8,1.6791]
[1739068820749,5.91068897,2643.5,2642.8,1.6791]
[1739068820947,3.2078,2643.2,2642.8,1.6791]
[1739068821840,5.91068897,2643.5,2642.8,1.6791]
[1739068822140,4.12095401,2643.4,2642.8,1.6791]
[1739068822339,3.2078,2643.2,2642.8,1.6791]
[1739068823649,5.91068897,2643.5,2642.8,1.6791]
[1739068823947,4.34853755,2643.4,2642.8,1.6791]
[1739068824150,3.2078,2643.2,2642.8,1.6791]
[1739068824648,5.91068897,2643.5,2642.8,1.6791]
[1739068824842,3.2078,2643.2,2642.8,1.6791]
[1739068825446,5.91068897,2643.5,2642.8,1.6791]
[1739068825752,4.25345495,2643.4,2642.8,1.6791]
[1739068826050,0.557,2643.3,2642.8,1.6791]
[1739068826852,4.25345495,2643.4,2643.2,3.2078]
[1739068827047,3.2078,2643.8,2643.3,1.1327]
[1739068827448,4.24492691,2643.7,2643.3,1.1327]
[1739068828249,4.24492691,2643.7,2643.0,2.70288897]
[1739068828250,0.5614,2643.6,2643.0,2.70288897]
[1739068828449,0.5603,2643.5,2643.1,0.6002]
[1739068829743,4.21374545,2643.4,2642.9,3.2078]
[1739068836355,0.5603,2643.5,2643.0,3.87808897]
[1739068839059,0.5603,2643.5,2643.2,3.2078]
[1739068839360,0.5603,2643.5,2643.3,0.5529]
[1739068845463,5.91068897,2644.1,2643.3,0.5529]
[1739068845757,5.91068897,2644.1,2643.5,3.2078]
[1739068845758,4.02618235,2643.9,2643.5,3.2078]
[1739068846155,1.1179,2644.0,2643.5,3.8044]
[1739068846457,4.02324774,2643.8,2643.5,3.8044]
[1739068846657,4.02324774,2643.9,2643.5,3.8044]
[1739068846855,1.1179,2644.0,2643.5,3.8044]
[1739068847056,4.01523157,2643.9,2643.5,3.8044]
[1739068847358,1.1179,2644.0,2643.6,2.70288897]
[1739068847562,3.2078,2644.4,2643.6,2.70288897]
[1739068847864,0.5688,2644.3,2643.6,2.70288897]
[1739068848862,0.5688,2644.3,2643.7,3.2078]
[1739068849060,4.22324449,2644.2,2643.7,3.2078]
[1739068849362,4.22324449,2644.2,2643.5,0.5966]
[1739068850864,3.2078,2644.0,2643.5,0.5966]
[1739068851070,0.5701,2643.9,2643.5,0.5966]
[1739068851264,0.5972,2643.8,2643.5,0.5966]
[1739068855057,3.7653,2644.3,2643.7,3.2078]
[1739068855262,1.1629,2644.2,2643.7,3.2078]
[1739068855464,5.16953824,2644.2,2643.7,3.2078]
[1739068857761,5.16953824,2644.2,2643.8,1.1538]
[1739068858068,1.1629,2644.2,2643.8,1.1538]
[1739068861470,1.1629,2644.2,2643.7,3.2078]
[1739068861669,3.98821266,2644.1,2643.7,3.2078]
[1739068861869,0.5939,2644.0,2643.7,3.2078]
[1739068862367,3.98821266,2644.1,2643.7,3.2078]
[1739068863365,1.1629,2644.2,2643.7,3.2078]
[1739068863562,1.1629,2644.2,2643.8,0.5928]
[1739068864461,0.5675,2644.2,2643.8,0.5928]
[1739068864667,3.2078,2644.3,2643.9,2.70288897]
[1739068864866,1.1395,2644.6,2644.0,4.3245]
[1739068866175,1.1395,2644.6,2644.2,2.70288897]
[1739068866363,0.5659,2644.6,2644.2,2.70288897]
[1739068866567,0.5659,2644.6,2644.3,0.6013]
[1739068867165,0.5659,2644.6,2644.3,3.8091]
[1739068867579,0.6019,2644.5,2644.3,0.6013]
[1739068870672,0.6019,2644.5,2644.0,4.3245]
[1739068870871,0.6019,2644.5,2644.0,4.8794]
[1739068871685,3.8097,2644.5,2644.0,4.8794]
[1739068871871,0.5942,2644.4,2644.0,4.8794]
[1739068875687,3.8097,2644.5,2644.0,4.8794]
[1739068878889,4.83580472,2644.4,2643.7,3.2078]
[1739068879080,4.83580472,2644.4,2643.7,3.7653]
[1739068879787,4.07960472,2644.4,2643.7,3.7653]
[1739068881683,4.83580472,2644.4,2643.7,3.7653]
[1739068882889,4.07960472,2644.4,2643.7,3.7653]
[1739068884993,4.83581472,2644.4,2643.7,3.7653]
[1739068885589,4.83581472,2644.4,2643.8,0.51331891]
[1739068885789,4.83581472,2644.4,2643.7,3.7653]
[1739068889695,3.2078,2644.1,2643.7,0.5575]
[1739068890196,1.2042,2644.0,2643.7,0.5575]
[1739068897086,1.2042,2644.0,2643.8,0.5135276]
[1739068897288,1.2042,2644.0,2643.9,0.5135276]
[1739068897694,1.2042,2644.0,2643.7,0.5575]
[1739068897995,1.2042,2644.0,2643.8,0.51364207]
[1739068898195,1.2042,2644.0,2643.7,0.5575]
[1739068898400,1.2042,2644.0,2643.8,0.51372477]
[1739068898600,1.2042,2644.0,2643.7,0.5575]
[1739068898899,1.2042,2644.0,2643.8,0.51372489]
[1739068899196,1.2042,2644.0,2643.7,0.5575]
[1739068899502,1.2042,2644.0,2643.8,0.51382952]
[1739068899800,1.2042,2644.0,2643.7,0.5575]
[1739068900099,1.2042,2644.0,2643.8,0.51382947]
[1739068900303,1.2042,2644.0,2643.7,0.5575]
[1739068902602,4.16104712,2643.9,2643.5,1.1931]
[1739068902897,4.16104712,2643.9,2643.5,1.7606]
[1739068905900,4.91738712,2643.9,2643.5,1.7606]
[1739068906705,0.75637,2643.8,2643.5,0.5675]
[1739068906901,4.16104712,2643.9,2643.4,3.21348214]
[1739068907211,1.35681,2643.7,2643.4,0.00568214]
[1739068907411,0.5696,2643.6,2643.4,0.00568214]
[1739068907599,1.1477,2643.6,2643.4,0.00568214]
[1739068908711,1.90414,2643.6,2643.4,0.00568214]
[1739068909004,4.35592283,2643.5,2643.4,0.00568214]
[1739068923014,3.2078,2643.8,2643.4,1.21507103]
[1739068923224,4.398,2644.1,2643.7,1.20938889]
[1739068923416,4.398,2644.1,2643.9,1.20938889]
[1739068923417,3.8048,2644.1,2643.9,1.20938889]
[1739068923615,3.8048,2644.1,2644.0,1.2034]
[1739068925919,3.8048,2644.1,2644.0,0.5997]
[1739068926123,0.597,2644.1,2644.0,0.5997]
[1739068926522,0.597,2644.1,2643.6,0.5495]
[1739068926723,0.5959,2644.0,2643.7,0.5892]
[1739068936125,3.8048,2644.1,2643.7,0.5892]
[1739068936428,0.597,2644.1,2643.7,0.5892]
[1739068941925,0.5717,2644.0,2643.7,0.5892]
[1739068942727,0.5717,2644.0,2643.7,3.797]
[1739068943528,0.597,2644.1,2643.7,3.797]
[1739068943932,0.5738,2644.3,2643.8,2.70091918]
[1739068944331,3.2078,2644.4,2643.8,2.70091918]
[1739068944733,3.2078,2644.4,2644.1,1.20844317]
[1739068944933,3.2078,2644.4,2644.2,1.1648]
[1739068945131,3.2078,2644.4,2644.2,1.7402]
[1739068945935,3.2078,2644.4,2644.3,1.20844317]
[1739068947138,3.2078,2644.4,2644.2,0.6054]
[1739068947439,1.1261,2644.3,2644.2,0.6054]
[1739068948644,1.1261,2644.3,2643.9,1.76524317]
[1739068948939,1.1261,2644.3,2643.9,2.32844317]
[1739068950033,3.96365076,2644.2,2643.7,4.41624317]
[1739068950234,4.56465076,2644.2,2643.7,4.41624317]
[1739068951234,1.20844317,2644.1,2643.7,4.41624317]
[1739068951738,4.04723916,2644.0,2643.7,3.2078]
[1739068952242,0.5606,2643.9,2643.7,3.2078]
[1739068952431,0.5963,2643.8,2643.7,3.2078]
[1739068953139,0.5963,2643.8,2643.6,0.5768]
[1739068955838,0.5963,2643.8,2643.7,1.20844317]
[1739068958537,3.2078,2644.2,2643.7,1.20844317]
[1739068958731,3.8018,2644.2,2644.0,1.20844317]
[1739068958940,3.8018,2644.2,2644.1,0.5838]
[1739068959744,3.8018,2644.2,2644.1,1.7303]
[1739068961142,3.8018,2644.2,2643.8,4.41624317]
[1739068961340,4.3613,2644.2,2643.8,1.20844317]
[1739068962339,4.3613,2644.2,2643.6,2.33324317]
[1739068962543,5.2669739,2644.1,2643.6,1.78174317]
[1739068962738,4.05853073,2644.1,2643.6,0.5733]
[1739068963645,4.81483073,2644.1,2643.5,3.2078]
[1739068963945,4.81483073,2644.1,2643.4,0.00568214]
[1739068964143,3.2078,2643.9,2643.4,0.00568214]
[1739068964349,0.591,2643.8,2643.4,0.00568214]
[1739068964641,1.1471,2643.8,2643.4,0.00568214]
[1739068967544,3.99222318,2643.7,2643.4,0.00568214]
[1739068967744,4.55462318,2643.7,2643.4,0.00568214]
[1739068974153,1.1471,2643.8,2643.4,0.00568214]
[1739068974445,0.5561,2643.8,2643.4,3.21348214]
[1739068974848,0.5561,2643.8,2643.5,0.562]
[1739068975151,0.5561,2643.8,2643.6,1.1436]
[1739068976255,3.2078,2643.9,2643.6,1.1436]
[1739068976549,3.7694,2644.2,2643.6,3.84500776]
[1739068977144,3.7694,2644.2,2643.9,2.70140776]
[1739068977349,3.2078,2644.2,2644.0,0.571]
[1739068977549,3.2078,2644.2,2644.1,1.1468]
[1739068981245,3.2078,2644.2,2643.9,2.70140776]
[1739068981449,0.5875,2644.1,2643.8,1.2002]
[1739068981751,1.1789,2644.1,2643.8,1.2002]
[1739068984257,0.5875,2644.1,2643.8,1.2002]
[1739068984458,3.2078,2644.2,2643.9,3.28190776]
[1739068985359,0.6065,2644.5,2644.0,3.2078]
[1739068987553,4.18279278,2644.4,2643.8,1.2002]
[1739068987954,4.78569278,2644.4,2643.8,1.2002]
[1739068989053,5.54189278,2644.4,2643.8,1.2002]
[1739068989255,4.78569278,2644.4,2643.8,1.2002]
[1739068991857,4.18279278,2644.4,2643.8,1.2002]
[1739068992458,0.6065,2644.5,2643.8,1.2002]
[1739068993354,0.6065,2644.5,2644.0,3.2078]
[1739068993758,0.6065,2644.5,2644.1,0.5557]
[1739068993962,0.6065,2644.5,2644.2,2.70140776]
[1739068994154,0.6065,2644.5,2644.3,1.1649]
[1739068994861,3.8051,2644.6,2644.3,1.1649]
[1739068998472,3.2078,2644.6,2644.3,1.1649]
[1739068998764,0.00246248,2644.5,2644.3,1.1649]
[1739068999976,0.00246248,2644.5,2644.3,7.2897]
[1739069005173,0.00246248,2644.5,2644.3,4.3727]
[1739069006071,0.00246248,2644.5,2644.3,3.7829]
[1739069008067,0.00246248,2644.5,2644.3,0.5751]
[1739069015480,0.00246248,2644.5,2644.2,5.90920776]
[1739069020584,0.00246248,2644.5,2644.4,1.20816845]
[1739069026586,0.00246248,2644.5,2644.4,1.71051259]
[1739069029394,0.00246248,2644.5,2644.4,1.20816845]
[1739069030594,0.00246248,2644.5,2644.2,3.2078]
[1739069039502,0.00246248,2644.5,2644.1,5.46188385]
[1739069040706,0.00246248,2644.5,2644.2,0.49461573]
[1739069040898,0.00246248,2644.5,2644.1,5.46188385]
[1739069044495,0.00246248,2644.5,2644.4,2.69978385]
[1739069045804,0.00246248,2644.5,2644.2,3.2078]
[1739069052611,0.00246248,2644.5,2644.4,1.20810713]
[1739069072029,0.6018,2644.7,2644.4,1.20810713]
[1739069072330,0.6018,2644.7,2644.5,0.5859]
[1739069074327,0.00259679,2644.6,2644.5,0.5859]
[1739069082333,3.96654679,2644.6,2644.0,0.5836]
[1739069082640,3.2078,2644.3,2643.7,1.20810713]
[1739069082837,1.2019,2644.2,2643.7,1.76540713]
[1739069083140,1.7511,2644.2,2643.7,1.76540713]
[1739069083640,1.7511,2644.2,2643.9,1.20810713]
[1739069087145,1.7511,2644.2,2644.0,0.6022]
[1739069093043,1.2019,2644.2,2644.1,1.20810713]
[1739069093347,0.6031,2644.2,2644.1,1.20810713]
[1739069093543,0.6031,2644.2,2644.0,0.6022]
[1739069095344,0.6068,2644.1,2644.0,0.6022]
[1739069095540,0.6068,2644.1,2643.9,1.20810713]
[1739069096148,1.81490713,2644.1,2643.7,1.76540713]
[1739069096448,0.5512,2644.0,2643.7,1.76540713]
[1739069097738,0.5512,2644.0,2643.7,1.20810713]
[1739069099643,0.6022,2643.9,2643.7,1.20810713]
[1739069102949,0.6068,2644.1,2643.7,1.20810713]
[1739069103139,3.2078,2644.3,2644.0,1.20810713]
[1739069103439,3.2078,2644.3,2644.1,2.36710713]
[1739069103640,3.2078,2644.3,2644.2,0.571]
[1739069104044,3.21039679,2644.6,2644.2,0.571]
[1739069104248,3.21039679,2644.6,2644.5,1.20810713]
[1739069104845,0.00259679,2644.6,2644.5,1.20810713]
[1739069105450,0.00259679,2644.6,2644.5,1.81370713]
[1739069106647,0.00259679,2644.6,2644.5,3.30456788]
[1739069117359,0.00259679,2644.6,2644.5,6.22156788]
[1739069117562,3.8161,2645.3,2644.5,12.22156788]
[1739069117764,3.8161,2645.3,2645.0,2.69896788]
[1739069118060,3.8161,2645.3,2645.1,1.7599]
[1739069118755,3.2078,2645.3,2645.1,1.7599]
[1739069120165,3.2078,2645.6,2645.1,4.6769]
[1739069120467,3.2078,2645.6,2645.4,2.69896788]
[1739069120765,3.2078,2645.6,2645.5,0.5866]
[1739069120965,3.2078,2645.6,2645.4,2.69896788]
[1739069129871,3.2078,2645.6,2645.5,0.5499]
[1739069131571,0.5613,2645.8,2645.5,0.5499]
[1739069131867,0.5613,2645.8,2645.7,2.69896788]
[1739069135474,0.5647,2646.0,2645.7,2.69896788]
[1739069138973,0.5647,2646.0,2645.8,0.5947]
[1739069140568,0.5647,2646.0,2645.9,0.5493]
[1739069142867,0.5647,2646.0,2645.7,5.90676788]
[1739069144074,0.5524,2645.9,2645.7,5.90676788]
[1739069144269,0.5918,2645.8,2645.7,5.90676788]
[1739069146674,0.5918,2645.8,2645.7,2.69896788]
[1739069149084,0.5918,2645.8,2645.4,5.61596788]
[1739069149380,3.7996,2645.8,2645.4,2.69896788]
[1739069149678,3.7996,2645.8,2645.3,0.5547]
[1739069150976,4.01732874,2645.7,2645.3,0.5547]
[1739069151382,0.5642,2645.6,2645.3,0.5547]
[1739069152684,0.5642,2645.6,2645.2,3.2078]
[1739069153085,0.5646,2645.5,2645.2,3.2078]
[1739069156794,0.5606,2645.4,2645.2,3.2078]
[1739069157293,0.5554,2645.3,2645.2,3.2078]
[1739069158095,0.5554,2645.3,2645.1,2.69896788]
[1739069160587,0.5554,2645.3,2645.0,1.1509]
[1739069160788,0.5554,2645.3,2645.0,0.5673]
[1739069163889,3.97635754,2645.2,2645.0,0.5673]
[1739069164293,3.97635754,2645.2,2644.9,3.21347129]
[1739069164692,0.5728,2645.1,2644.9,3.21347129]
[1739069164986,0.5717,2645.0,2644.9,3.21347129]
[1739069165192,1.1608,2645.0,2644.9,3.21347129]
[1739069165587,3.2078,2645.5,2644.9,3.21347129]
[1739069165588,3.2078,2645.9,2644.9,0.00567129]
[1739069165793,3.2078,2645.9,2645.7,2.69896788]
[1739069168391,3.7969,2646.3,2645.7,2.69896788]
[1739069168588,3.2078,2646.3,2646.0,2.69896788]
[1739069168796,3.2078,2646.3,2646.1,1.7213]
[1739069169292,3.2078,2646.3,2646.1,1.1499]
[1739069170785,3.2078,2646.3,2645.7,2.69896788]
[1739069170989,3.2078,2645.8,2645.1,4.44956788]
[1739069171189,1.157,2645.7,2645.1,7.65736788]
[1739069171398,3.2078,2645.5,2645.1,7.08596788]
[1739069171600,3.2078,2645.5,2645.1,3.87816788]
[1739069171900,3.94658779,2645.4,2645.1,3.87816788]
[1739069172490,3.94658779,2645.4,2645.1,3.26946788]
[1739069172896,3.94658779,2645.4,2645.1,0.5705]
[1739069173096,3.94658779,2645.4,2644.9,1.20197129]
[1739069184110,3.94658779,2645.4,2645.1,2.69896788]
[1739069184805,3.94658779,2645.4,2645.2,0.561]
[1739069185911,4.02068019,2645.6,2645.2,0.561]
[1739069186106,1.157,2645.7,2645.2,0.561]
[1739069186306,4.11130573,2645.6,2645.2,0.561]
[1739069188811,1.157,2645.7,2645.2,0.561]
[1739069191408,1.157,2645.7,2645.3,0.5702]
[1739069193008,0.6045,2645.6,2645.3,0.5702]
[1739069194806,1.157,2645.7,2645.3,0.5702]
[1739069196816,0.5981,2645.7,2645.4,2.69896788]
[1739069197019,0.5981,2645.7,2645.4,3.29526788]
[1739069198715,0.5981,2645.7,2645.4,2.69896788]
[1739069198910,0.5961,2645.6,2645.4,2.69896788]
[1739069202417,0.5961,2645.6,2645.3,0.5702]
[1739069202618,4.31047881,2645.5,2645.1,2.69896788]
[1739069202813,4.87607881,2645.5,2645.1,2.69896788]
[1739069205422,4.87607881,2645.5,2645.1,3.25426788]
[1739069209428,0.5961,2645.6,2645.4,2.69896788]
[1739069209622,0.5961,2645.6,2645.5,0.5906]
[1739069210121,0.5981,2645.7,2645.5,0.5906]
[1739069210321,3.2078,2645.8,2645.6,0.6001]
[1739069212929,2.994,2646.8,2645.7,2.69896788]
[1739069212930,3.2078,2646.5,2645.7,2.69896788]
[1739069213127,3.2078,2646.5,2646.0,2.69896788]
[1739069213128,3.792,2646.5,2646.0,2.69896788]
[1739069213326,7.89111784,2646.5,2646.1,1.149]
[1739069213516,7.89111784,2646.5,2646.1,1.7423]
[1739069216426,0.5842,2646.5,2646.3,2.69896788]
[1739069218925,3.2078,2646.8,2646.3,2.69896788]
[1739069219134,3.2078,2646.8,2646.6,2.69896788]
[1739069219432,3.2078,2646.8,2646.7,0.5959]
[1739069220635,4.4069,2647.1,2646.7,0.5959]
[1739069220826,4.4069,2647.1,2646.7,1.7847]
[1739069221334,4.4069,2647.1,2646.9,2.69896788]
[1739069222623,3.8156,2647.1,2646.9,2.69896788]
[1739069226028,0.6065,2647.0,2646.9,2.69896788]
[1739069227135,4.55973792,2647.0,2646.6,2.69896788]
[1739069227329,5.11693792,2647.0,2646.6,2.69896788]
[1739069227531,3.96333,2646.8,2646.3,0.00567129]
[1739069227730,2.69896788,2646.9,2646.3,0.00567129]
[1739069227731,3.2078,2646.5,2646.3,0.00567129]
[1739069227934,1.6732,2646.4,2646.3,0.00567129]
[1739069228133,5.7542747,2646.4,2646.3,0.00567129]
[1739069228331,6.5098947,2646.4,2645.7,0.5907]
[1739069228533,3.2078,2646.3,2645.6,2.69896788]
[1739069228835,3.2078,2646.3,2645.6,5.90676788]
[1739069229029,4.0810747,2646.2,2645.6,5.90676788]
[1739069229629,4.08670983,2646.2,2645.6,5.91243917]
[1739069230437,3.2078,2646.0,2645.6,2.70463917]
[1739069230937,4.36841956,2645.9,2645.6,2.70463917]
[1739069231238,0.5861,2645.8,2645.6,2.70463917]
[1739069231444,1.1845,2645.8,2645.6,2.70463917]
[1739069232935,0.00563513,2646.2,2645.6,5.91243917]
[1739069233136,0.00563513,2646.2,2645.9,2.69896788]
[1739069235629,0.00563513,2646.2,2645.6,5.91243917]
[1739069237542,0.00563513,2646.2,2645.9,2.69896788]
[1739069243149,0.00563513,2646.2,2646.0,1.1087]
[1739069245850,0.00563513,2646.2,2645.9,2.69896788]
[1739069246244,0.00563513,2646.2,2645.7,3.2078]
[1739069246645,0.58353513,2646.2,2645.7,3.2078]
[1739069247042,1.33922513,2646.2,2645.7,3.2078]
[1739069247246,0.58353513,2646.2,2645.7,3.2078]
[1739069248446,3.79133513,2646.2,2645.6,3.88433917]
[1739069254862,4.25187498,2646.1,2645.6,3.88433917]
[1739069255059,3.2078,2645.8,2645.6,3.88433917]
[1739069255258,3.2078,2645.8,2645.6,0.57777129]
[1739069255562,3.2078,2645.8,2645.6,0.00567129]
[1739069255760,0.585,2645.7,2645.6,0.00567129]
[1739069256965,1.171,2645.7,2645.6,0.00567129]
[1739069262462,6.24923185,2645.7,2645.6,0.00567129]
[1739069262769,5.49341185,2645.7,2645.6,0.00567129]
[1739069262966,6.24923185,2645.7,2645.6,0.00567129]
[1739069263663,5.49341185,2645.7,2645.6,0.00567129]
[1739069264673,6.24923185,2645.7,2645.6,0.00567129]
[1739069273265,4.90741185,2645.7,2645.6,0.00567129]
[1739069277369,7.53021185,2645.7,2645.6,0.00567129]
[1739069284279,8.28603185,2645.7,2645.6,0.00567129]
[1739069285075,7.53021185,2645.7,2645.6,0.00567129]
[1739069293590,4.32241185,2645.7,2645.6,0.00567129]
[1739069293985,3.2078,2646.0,2645.6,2.70463917]
[1739069294787,0.00563513,2646.2,2645.6,2.70463917]
[1739069295092,4.20865124,2646.1,2645.6,2.70463917]
[1739069296590,0.00563513,2646.2,2645.6,2.70463917]
[1739069297090,0.00563513,2646.2,2645.9,2.69896788]
[1739069297289,0.00563513,2646.2,2646.0,1.7262]
[1739069306590,0.00563513,2646.2,2646.1,1.20678849]
[1739069313403,0.00563513,2646.2,2645.6,1.21245978]
[1739069313404,5.9315984,2646.2,2645.7,1.20678849]
[1739069313705,5.9315984,2646.2,2645.7,1.79588849]
[1739069313706,3.2078,2646.0,2645.7,1.79588849]
[1739069314011,0.6055,2645.9,2645.7,1.79588849]
[1739069314296,4.56898478,2645.9,2645.7,1.79588849]
[1739069315696,4.56898478,2645.9,2645.7,1.20678849]
[1739069316004,4.56898478,2645.9,2645.6,0.00567129]
[1739069331202,0.5745,2645.8,2645.6,0.00567129]
[1739069331703,4.55578512,2645.7,2645.6,0.00567129]
[1739069337713,7.76358512,2645.7,2645.6,0.00567129]
[1739069338613,8.97112766,2645.7,2645.6,0.00567129]
[1739069340713,5.76332766,2645.7,2645.6,0.00567129]
[1739069341120,8.97112766,2645.7,2645.6,0.00567129]
[1739069341421,9.72694766,2645.7,2645.6,0.00567129]
[1739069341615,8.97112766,2645.7,2645.6,0.00567129]
[1739069343114,7.76358512,2645.7,2645.6,0.00567129]
[1739069345215,8.97112766,2645.7,2645.6,0.00567129]
[1739069347123,5.76332766,2645.7,2645.6,0.00567129]
[1739069347316,8.97112766,2645.7,2645.6,0.00567129]
[1739069349626,10.61812766,2645.7,2645.6,0.00567129]
[1739069350316,13.61212766,2645.7,2645.6,0.00567129]
[1739069352928,14.36794766,2645.7,2645.6,0.00567129]
[1739069353227,13.61212766,2645.7,2645.6,0.00567129]
[1739069354225,11.16014766,2645.7,2645.6,0.00567129]
[1739069354422,14.36794766,2645.7,2645.6,0.00567129]
[1739069354629,13.61212766,2645.7,2645.6,0.00567129]
[1739069356229,10.61812766,2645.7,2645.6,0.00567129]
[1739069361537,11.38982766,2645.7,2645.6,0.00567129]
[1739069361833,3.98048512,2645.7,2645.6,1.21321383]
[1739069362036,3.2078,2646.0,2645.6,7.21321383]
[1739069362247,3.2078,2646.0,2645.9,1.20754254]
[1739069365436,0.00563513,2646.2,2645.9,1.20754254]
[1739069366040,3.2078,2646.0,2645.9,1.20754254]
[1739069366738,3.2078,2646.0,2645.7,2.96554254]
[1739069366947,7.5095649,2646.0,2645.7,2.96554254]
[1739069367249,7.5095649,2646.0,2645.7,1.758]
[1739069367442,8.0631649,2646.0,2645.7,1.758]
[1739069379045,8.0631649,2646.0,2645.7,0.5658]
[1739069379248,8.6334649,2646.0,2645.7,0.5658]
[1739069379658,1.20754254,2645.9,2645.6,0.00567129]
[1739069380156,4.0211332,2645.8,2645.6,0.00567129]
[1739069380359,1.20754254,2645.7,2645.6,0.00567129]
[1739069380559,1.78274254,2645.7,2645.6,0.00567129]
[1739069380759,5.75455601,2645.7,2645.6,0.00567129]
[1739069400270,6.51037601,2645.7,2645.6,0.00567129]
[1739069400467,0.75592,2645.4,2644.5,4.41534254]
[1739069400669,3.2078,2645.2,2644.5,4.41534254]
[1739069400867,1.20754254,2644.9,2644.5,4.41534254]
[1739069401068,0.5798,2644.8,2644.5,4.41534254]
[1739069401268,4.8197761,2644.8,2644.5,4.41534254]
[1739069401675,4.8197761,2644.8,2644.5,3.2078]
[1739069402879,1.20754254,2644.7,2644.5,3.2078]
[1739069403374,4.20942617,2644.6,2644.5,3.2078]
[1739069404372,4.20942617,2644.6,2644.4,1.73107129]
[1739069404775,4.20942617,2644.6,2644.4,0.56017129]
[1739069404978,1.20754254,2644.5,2644.4,0.56017129]
[1739069405380,5.30315987,2644.5,2644.4,0.56017129]
[1739069406483,8.51095987,2644.5,2644.4,0.56017129]
[1739069406986,8.51095987,2644.5,2644.4,0.00567129]
[1739069409781,9.26712987,2644.5,2644.4,0.00567129]
[1739069409982,9.26712987,2644.5,2643.9,1.7646]
[1739069410184,1.20754254,2644.1,2643.9,1.7646]
[1739069411685,4.32358335,2644.0,2643.9,0.5623]
[1739069411879,4.89628335,2644.0,2643.9,0.5623]
[1739069412984,4.32358335,2644.0,2643.9,1.76984254]
[1739069413188,3.2078,2644.2,2643.9,1.76984254]
[1739069414076,3.7805,2644.6,2644.1,1.20754254]
[1739069414288,1.646,2644.6,2644.3,1.20754254]
[1739069414481,4.25193332,2644.5,2644.4,1.1442]
[1739069415790,3.21347129,2644.9,2644.4,1.1442]
[1739069416085,0.00567129,2644.9,2644.7,1.20754254]
[1739069416387,0.00567129,2644.9,2644.8,0.5982]
[1739069416787,4.8538,2645.6,2644.8,0.5982]
[1739069417290,4.19247016,2645.4,2644.8,0.5982]
[1739069417482,9.04627016,2645.6,2644.8,0.5982]
[1739069417684,4.19247016,2645.5,2644.8,0.5982]
[1739069418078,0.00567129,2645.4,2644.8,0.5982]
[1739069418792,3.96196774,2645.3,2644.8,0.5982]
[1739069419388,7.16976774,2645.3,2644.8,0.5982]
[1739069424894,3.96196774,2645.3,2644.8,0.5982]
[1739069425086,0.578,2645.2,2644.8,0.5982]
[1739069425482,4.01917246,2645.1,2644.8,0.5982]
[1739069427188,4.01917246,2645.1,2644.7,3.2078]
[1739069427690,0.5544,2645.0,2644.7,3.2078]
[1739069428191,4.06034412,2644.9,2644.7,3.2078]
[1739069429504,4.06034412,2644.9,2644.5,0.5894]
[1739069430094,4.06034412,2644.9,2644.6,3.2078]
[1739069431701,0.5947,2644.8,2644.6,3.2078]
[1739069431902,0.5947,2644.8,2644.5,0.5894]
[1739069440408,0.5947,2644.8,2644.4,3.842689]
[1739069446003,4.36959537,2644.7,2644.4,3.842689]
[1739069450614,0.5544,2645.0,2644.6,3.2078]
[1739069450910,2.994,2645.2,2644.9,3.2078]
[1739069451118,2.994,2645.2,2645.0,1.7736]
[1739069454324,0.5935,2645.3,2645.0,1.7736]
[1739069455714,0.5935,2645.3,2645.0,4.472089]
[1739069457820,0.5935,2645.3,2644.9,3.2078]
[1739069458023,4.07411482,2645.2,2644.9,3.2078]
[1739069458220,0.5683,2645.1,2644.7,2.698489]
[1739069458618,4.07411482,2645.0,2644.7,2.698489]
[1739069459022,0.5491,2644.9,2644.7,2.698489]
[1739069459825,0.5491,2644.9,2644.6,1.15]
[1739069460125,0.5491,2644.9,2644.6,0.6013]
[1739069465128,0.5491,2644.9,2644.7,2.698489]
[1739069465337,0.5881,2645.2,2644.8,3.2078]
[1739069465534,0.00567129,2645.4,2644.8,3.2078]
[1739069465834,4.13265983,2645.3,2644.8,3.2078]
[1739069467134,4.69655983,2645.3,2644.8,3.2078]
[1739069467634,3.2078,2645.2,2644.6,0.6013]
[1739069467830,0.5502,2645.1,2644.6,0.6013]